bitfinex-derivatives/quotes_ETHF0:USTF0_20240817
["timestamp","ask_amount","ask_price","bid_price","bid_amount"]
[1723907763677,1.43332,2616.0,2615.6,0.7506]
[1723907763979,1.43343,2615.8,2615.7,1.43344]
[1723907764881,1.43332,2616.0,2615.7,1.43344]
[1723907765186,1.43334,2615.9,2615.7,1.43344]
[1723907765379,1.43329,2616.0,2615.7,1.43341]
[1723907765884,1.43339,2615.8,2615.7,1.43341]
[1723907766379,1.43325,2616.1,2616.0,1.43325]
[1723907767483,1.43325,2616.1,2615.9,1.785]
[1723907767681,1.43325,2616.1,2616.0,0.3676]
[1723907768078,1.43325,2616.1,2615.9,0.3517]
[1723907768079,1.43329,2616.0,2615.9,0.3517]
[1723907769579,1.43329,2616.0,2615.9,1.78504]
[1723907769986,1.43329,2616.0,2615.9,0.3517]
[1723907770282,1.43339,2615.8,2615.7,0.99085041]
[1723907770486,1.43339,2615.8,2615.7,3.26393002]
[1723907770876,1.43339,2615.8,2615.7,3.26393823]
[1723907771288,0.3688,2616.1,2615.7,7.57792666]
[1723907771289,1.43337,2615.9,2615.7,7.57792666]
[1723907771588,0.3688,2616.1,2615.9,1.43332]
[1723907771787,1.43323,2616.1,2616.0,0.3544]
[1723907772392,1.7764,2616.2,2615.8,2.42598683]
[1723907772787,1.43332,2616.0,2615.8,2.42598683]
[1723907773084,1.43334,2615.9,2615.8,2.42598683]
[1723907773288,1.43334,2615.9,2615.8,4.33749855]
[1723907773486,1.43334,2615.9,2615.8,2.42598683]
[1723907773687,1.43334,2615.9,2615.8,4.33750236]
[1723907774189,1.43334,2615.9,2615.8,2.90414236]
[1723907774395,1.43334,2615.9,2615.8,0.99262683]
[1723907775487,2.86668,2615.9,2615.8,0.99262683]
[1723907775693,1.43339,2615.8,2615.7,0.7159]
[1723907775998,1.80709,2615.8,2615.7,0.7159]
[1723907777785,1.80709,2615.8,2615.7,1.70852683]
[1723907778296,1.80709,2615.8,2615.7,2.14935]
[1723907778484,1.80709,2615.8,2615.7,3.14197683]
[1723907779092,1.80709,2615.8,2615.7,0.7159]
[1723907779393,1.43339,2615.8,2615.7,3.14197683]
[1723907779588,1.43339,2615.8,2615.7,5.05359796]
[1723907780293,1.43339,2615.8,2615.7,1.70852683]
[1723907781398,1.43339,2615.8,2615.7,3.14197683]
[1723907782588,1.43338,2615.9,2615.8,1.43339]
[1723907782792,1.4333,2616.0,2615.9,1.43332]
[1723907783000,1.4333,2616.0,2615.8,2.42598683]
[1723907783801,1.4333,2616.0,2615.9,1.43334]
[1723907783997,1.4333,2616.0,2615.8,2.42597683]
[1723907784202,1.43334,2615.9,2615.8,2.42597683]
[1723907784396,1.43322,2616.2,2615.7,3.14193683]
[1723907784700,1.43323,2616.1,2615.8,1.43339]
[1723907784902,1.43337,2615.9,2615.7,3.14194683]
[1723907785195,1.43337,2615.9,2615.8,1.43339]
[1723907786088,1.43323,2616.1,2615.7,3.14194683]
[1723907786089,1.43339,2615.8,2615.7,3.14194683]
[1723907786502,1.43339,2615.8,2615.7,1.70852683]
[1723907786701,1.43339,2615.8,2615.7,0.7159]
[1723907787097,1.43339,2615.8,2615.7,1.70852683]
[1723907787493,1.43339,2615.8,2615.7,2.14935]
[1723907787694,1.43339,2615.8,2615.7,3.14197683]
[1723907788594,1.43338,2615.9,2615.8,1.43339]
[1723907789104,1.43338,2615.9,2615.8,2.42601683]
[1723907789489,1.43338,2615.9,2615.8,4.33756949]
[1723907789694,1.43338,2615.9,2615.8,2.42601683]
[1723907789901,1.43338,2615.9,2615.8,4.33754896]
[1723907790097,1.43338,2615.9,2615.8,2.42601683]
[1723907790298,1.43338,2615.9,2615.8,4.33760365]
[1723907790695,1.43338,2615.9,2615.7,3.14194683]
[1723907790899,1.43339,2615.8,2615.7,3.14194683]
[1723907791094,1.43337,2615.9,2615.8,1.43338]
[1723907792202,1.43337,2615.9,2615.8,2.42600683]
[1723907792397,1.43337,2615.9,2615.8,4.3376329]
[1723907793508,1.4333,2616.0,2615.8,4.33935733]
[1723907793704,1.43332,2616.0,2615.9,0.99437126]
[1723907794101,7.0302,2616.0,2615.8,1.43339]
[1723907794302,7.0302,2616.0,2615.8,2.42776126]
[1723907794303,3.2078,2616.0,2615.8,2.42776126]
[1723907795394,1.43336,2615.9,2615.8,0.99437126]
[1723907795909,1.43336,2615.9,2615.8,2.42776126]
[1723907796407,1.43339,2615.8,2615.7,1.71027126]
[1723907797107,2.8669,2615.7,2615.6,0.99437126]
[1723907797301,1.43356,2615.5,2615.4,1.48163884]
[1723907797503,1.43356,2615.5,2615.4,3.99467712]
[1723907797702,1.43356,2615.5,2615.4,1.91187219]
[1723907798214,1.43356,2615.5,2615.4,3.39351103]
[1723907799508,1.43356,2615.5,2615.4,1.91187219]
[1723907799907,1.43361,2615.4,2615.3,3.64848884]
[1723907800215,2.86722,2615.4,2615.3,1.72786844]
[1723907800508,6.69042,2615.4,2615.3,0.7332]
[1723907801008,5.25681,2615.4,2615.3,0.7332]
[1723907802510,1.43361,2615.4,2615.3,0.7332]
[1723907803214,1.43361,2615.4,2615.1,1.43374]
[1723907803215,1.43367,2615.3,2615.1,2.42840844]
[1723907803515,1.43367,2615.3,2615.2,0.3686]
[1723907803907,5.25767,2615.3,2615.2,0.3686]
[1723907804102,5.25767,2615.3,2615.2,2.79698844]
[1723907804309,5.25767,2615.3,2615.2,1.80232]
[1723907804508,5.25767,2615.3,2615.2,0.3686]
[1723907805017,5.25767,2615.3,2615.2,1.80232]
[1723907805614,5.25767,2615.3,2615.2,0.3686]
[1723907807513,1.43367,2615.3,2615.2,0.3686]
[1723907807717,1.43365,2615.4,2615.2,1.4696]
[1723907807913,1.43366,2615.4,2615.3,1.101]
[1723907809123,1.43366,2615.4,2615.2,2.90327]
[1723907809623,1.43367,2615.3,2615.2,2.90327]
[1723907810012,1.43367,2615.3,2615.2,5.62627]
[1723907810421,1.7763,2615.6,2615.3,1.43366]
[1723907810422,1.43364,2615.4,2615.3,1.43366]
[1723907810622,1.43364,2615.4,2615.2,1.80228]
[1723907810828,4.113,2615.9,2615.6,1.43348]
[1723907811121,4.113,2615.9,2615.7,2.54325]
[1723907811515,1.43339,2615.8,2615.7,2.54325]
[1723907812620,1.43337,2615.9,2615.8,1.43339]
[1723907812814,1.77955,2616.1,2615.9,1.43334]
[1723907812815,1.43332,2616.0,2615.9,1.43334]
[1723907813018,5.54616,2616.3,2615.9,1.43334]
[1723907813212,1.43329,2616.0,2615.9,1.43334]
[1723907813922,1.43323,2616.1,2616.0,1.43326]
[1723907814220,1.43321,2616.2,2616.0,1.43325]
[1723907814426,1.43317,2616.3,2616.1,0.3597]
[1723907814623,1.43317,2616.3,2616.2,0.7208]
[1723907816122,1.43309,2616.4,2616.2,0.7208]
[1723907816324,0.00312852,2616.5,2616.3,1.43311]
[1723907816525,1.43307,2616.4,2616.3,1.43311]
[1723907817025,1.43307,2616.4,2616.2,0.7208]
[1723907817026,1.43307,2616.4,2616.2,2.15394]
[1723907817730,1.43307,2616.4,2616.3,1.43312]
[1723907817924,1.43307,2616.4,2616.2,2.15394]
[1723907818724,1.43618852,2616.5,2616.3,1.43312]
[1723907819020,1.43618852,2616.5,2616.2,0.7208]
[1723907819021,1.43613852,2616.5,2616.4,1.43307]
[1723907819416,0.00312852,2616.5,2616.4,1.43307]
[1723907819622,1.43613852,2616.5,2616.4,1.43307]
[1723907820226,0.00312852,2616.5,2616.4,1.43307]
[1723907820528,1.43613852,2616.5,2616.4,1.43307]
[1723907820720,1.43307,2616.4,2616.3,1.43309]
[1723907820911,1.43617852,2616.5,2616.4,1.43307]
[1723907822019,0.00312852,2616.5,2616.4,1.43307]
[1723907822222,0.00312852,2616.5,2616.4,5.25467]
[1723907822526,0.0001637,2616.5,2616.4,6.68774]
[1723907823130,3.2078,2617.2,2617.1,1.43268]
[1723907823317,1.43258,2617.3,2617.2,1.43261]
[1723907823925,1.43256,2617.4,2617.3,1.43256]
[1723907824222,1.43248,2617.5,2617.4,1.43252]
[1723907824414,1.43634935,2617.5,2617.3,1.43596842]
[1723907826128,0.00386935,2617.5,2617.3,1.43596842]
[1723907826318,0.00386935,2617.5,2617.4,0.369]
[1723907826319,1.43632935,2617.5,2617.4,0.369]
[1723907827825,0.00386935,2617.5,2617.4,1.80152]
[1723907828022,1.43222,2618.0,2617.7,1.43232]
[1723907828533,1.43235,2617.7,2617.6,0.00573745]
[1723907828918,0.00374895,2617.7,2617.6,0.00573745]
[1723907829118,0.30369988,2618.6,2617.8,1.43228]
[1723907829119,1.43214,2618.1,2617.8,1.43228]
[1723907829326,1.43214,2618.1,2617.9,1.78173]
[1723907829534,1.43211,2618.2,2618.0,0.7287]
[1723907829735,3.2078,2618.5,2618.4,1.43197]
[1723907830026,0.00436042,2618.5,2618.4,2.643]
[1723907830228,0.00436042,2618.5,2618.4,21.00257223]
[1723907830433,0.00436042,2618.5,2618.4,25.64234223]
[1723907830732,0.00436042,2618.5,2618.4,24.21037223]
[1723907831024,1.43173,2618.9,2618.4,14.57060223]
[1723907831232,1.43166,2619.0,2618.7,1.43178]
[1723907831730,6.44512447,2619.4,2618.8,4.171]
[1723907831929,1.4315,2619.3,2618.9,1.8078]
[1723907832229,1.4315,2619.3,2618.9,1.80777]
[1723907832428,3.2078,2619.3,2618.8,0.3526]
[1723907832633,1.4317,2618.9,2618.8,0.3526]
[1723907832929,1.43181,2618.7,2618.6,0.3492]
[1723907833118,1.4319,2618.6,2618.4,0.3661]
[1723907833324,1.43183,2618.7,2618.4,0.3661]
[1723907834229,1.43181,2618.7,2618.4,0.3661]
[1723907834526,1.43186,2618.6,2618.5,0.3706]
[1723907834938,4.63951,2618.9,2618.5,0.3706]
[1723907835126,3.2078,2618.9,2618.5,0.3706]
[1723907835321,1.43159,2619.1,2618.5,0.3706]
[1723907835629,1.43179,2618.8,2618.6,0.3671]
[1723907836028,1.43159,2619.1,2618.6,0.3671]
[1723907836231,3.2078,2619.2,2618.6,0.3671]
[1723907836426,1.43148,2619.3,2618.9,1.4317]
[1723907836728,1.4315,2619.3,2618.9,1.4317]
[1723907836931,1.4315,2619.3,2619.0,0.3619]
[1723907837134,1.4315,2619.3,2619.1,0.3442]
[1723907837432,1.43153,2619.2,2619.1,0.3442]
[1723907838328,6.44985431,2619.4,2619.1,4.1626]
[1723907838527,1.43151,2619.3,2619.1,0.3442]
[1723907839036,7.88132431,2619.4,2619.1,0.3442]
[1723907839329,1.43153,2619.2,2619.1,0.3442]
[1723907839535,1.43152,2619.3,2619.1,0.3442]
[1723907840428,6.44985431,2619.4,2619.1,5.59338]
[1723907840619,6.44985431,2619.4,2619.2,0.3506]
[1723907840826,6.44985431,2619.4,2619.2,1.78684735]
[1723907841229,6.44985431,2619.4,2619.2,0.35531735]
[1723907841426,6.44985431,2619.4,2619.2,1.78684735]
[1723907841620,6.44985431,2619.4,2619.2,0.35531735]
[1723907841829,7.88128431,2619.4,2619.2,0.35531735]
[1723907842730,6.44985431,2619.4,2619.2,0.35531735]
[1723907843436,1.43148,2619.3,2619.2,0.35531735]
[1723907844123,4.63928,2619.3,2619.2,0.00471735]
[1723907844524,6.42326,2619.3,2619.2,0.00471735]
[1723907844726,10.24086,2619.3,2619.2,0.00471735]
[1723907844925,10.24086,2619.3,2618.9,0.00573745]
[1723907844926,2.86328,2619.0,2618.9,0.00573745]
[1723907845135,6.07108,2619.0,2618.9,0.00573745]
[1723907845933,6.07108,2619.0,2618.9,0.0104593]
[1723907846243,2.86328,2619.0,2618.9,0.0104593]
[1723907847038,6.68168,2619.0,2618.9,0.0104593]
[1723907847732,2.86328,2619.0,2618.9,0.0104593]
[1723907847932,6.68168,2619.0,2618.9,0.0104593]
[1723907849345,1.43164,2619.0,2618.9,0.0104593]
[1723907850249,5.25004,2619.0,2618.9,0.0104593]
[1723907850639,1.43164,2619.0,2618.9,0.0104593]
[1723907851348,2.86328,2619.0,2618.9,0.0104593]
[1723907851547,1.43164,2619.0,2618.9,0.0104593]
[1723907851736,6.68168,2619.0,2618.9,0.0104593]
[1723907852437,8.11332,2619.0,2618.9,0.0104593]
[1723907852937,8.11332,2619.0,2618.1,0.3422]
[1723907852938,1.43208,2618.2,2618.1,0.3422]
[1723907853135,1.43217,2618.1,2617.9,2.643]
[1723907853450,1.43216,2618.1,2618.0,8.20542999]
[1723907853740,1.4322,2618.0,2617.8,0.6943]
[1723907853949,2.17052,2618.4,2617.9,1.43223]
[1723907854241,1.43782745,2618.2,2617.9,1.43222]
[1723907854438,1.43214,2618.1,2617.8,2.13151098]
[1723907854747,1.43219,2618.0,2617.8,0.69924098]
[1723907855045,1.43217,2618.1,2617.8,2.13153098]
[1723907855245,1.43783745,2618.2,2617.9,1.43224]
[1723907855441,1.43783745,2618.2,2618.0,1.43217]
[1723907855442,1.43781745,2618.2,2618.0,1.43217]
[1723907855635,1.43781745,2618.2,2618.1,1.43214]
[1723907855636,0.00573745,2618.2,2618.1,1.43214]
[1723907855839,0.00573745,2618.2,2618.1,5.25134]
[1723907857635,0.00573745,2618.2,2618.1,10.25134]
[1723907857835,0.00573745,2618.2,2618.1,14.32648]
[1723907858035,1.43162,2619.1,2618.1,12.89434]
[1723907858332,1.43164,2619.0,2618.5,1.4319]
[1723907858535,1.43164,2619.0,2618.6,1.43185]
[1723907858536,1.43179,2618.8,2618.6,1.43185]
[1723907858741,1.43179,2618.8,2618.6,9.65189778]
[1723907858948,1.43172,2618.9,2618.7,1.43177]
[1723907859341,1.43175,2618.8,2618.6,1.43183]
[1723907859738,1.43173,2618.9,2618.6,7.79790707]
[1723907859933,1.43173,2618.9,2618.7,1.43178]
[1723907860139,1.43168,2619.0,2618.7,1.43176]
[1723907860334,1.43171,2618.9,2618.7,1.43179]
[1723907861238,1.43175,2618.8,2618.6,1.43182]
[1723907861443,1.43175,2618.8,2618.7,1.79688]
[1723907861645,1.43175,2618.8,2618.7,0.3651]
[1723907862143,1.43175,2618.8,2618.7,4.1835]
[1723907862342,1.43175,2618.8,2618.7,1.79691]
[1723907862544,1.43174,2618.9,2618.7,1.79691]
[1723907862863,1.43156,2619.2,2618.8,1.43175]
[1723907863153,1.43172,2618.9,2618.7,1.79687]
[1723907863352,1.43159,2619.1,2618.7,0.3651]
[1723907863542,1.43172,2618.9,2618.7,1.79689]
[1723907863851,1.43172,2618.9,2618.8,1.43175]
[1723907864047,1.43167,2619.0,2618.8,1.43175]
[1723907864261,1.4317,2618.9,2618.7,1.79687]
[1723907864544,1.43153,2619.2,2618.7,1.79687]
[1723907864746,1.43175,2618.8,2618.7,1.79687]
[1723907864963,1.43175,2618.8,2618.7,5.61527]
[1723907865145,1.43175,2618.8,2618.7,4.1835]
[1723907865842,1.43175,2618.8,2618.7,5.61531]
[1723907866652,1.43173,2618.9,2618.7,5.61531]
[1723907866856,1.43173,2618.9,2618.7,1.79691]
[1723907867354,1.43175,2618.8,2618.7,0.3651]
[1723907869154,1.43186,2618.6,2618.5,3.9399]
[1723907869651,1.43186,2618.6,2618.5,11.8756302]
[1723907870646,1.43186,2618.6,2618.5,13.3075502]
[1723907871054,1.43186,2618.6,2618.5,11.8756302]
[1723907871642,1.43186,2618.6,2618.5,17.1267502]
[1723907871864,2.86372,2618.6,2618.5,0.7321]
[1723907872043,2.86406,2618.3,2618.2,1.0487]
[1723907872355,2.86406,2618.3,2617.9,2.06196639]
[1723907872356,1.43217,2618.1,2617.9,2.06196639]
[1723907872548,1.43219,2618.0,2617.9,3.49417639]
[1723907872747,2.86438,2618.0,2617.9,0.7274]
[1723907872944,2.86448,2617.9,2617.8,0.00494098]
[1723907873152,1.43224,2617.9,2617.8,0.00494098]
[1723907873355,2.86448,2617.9,2617.8,0.00494098]
[1723907875556,5.25224,2617.9,2617.8,0.00494098]
[1723907875761,6.68448,2617.9,2617.8,0.00494098]
[1723907875964,1.43224,2617.9,2617.8,0.00494098]
[1723907877064,3.2078,2618.0,2617.8,0.00494098]
[1723907877255,1.43224,2617.9,2617.8,0.00494098]
[1723907878360,2.86448,2617.9,2617.8,0.00494098]
[1723907878953,6.68448,2617.9,2617.8,0.00494098]
[1723907880160,8.11672,2617.9,2617.8,0.00494098]
[1723907881061,8.47282,2617.9,2617.8,0.00494098]
[1723907881953,13.47282,2617.9,2617.8,0.00494098]
[1723907882156,8.47282,2617.9,2617.8,0.00494098]
[1723907883763,13.47282,2617.9,2617.8,0.00494098]
[1723907884064,2.8647,2617.7,2617.6,0.00573745]
[1723907884264,6.0725,2617.7,2617.6,0.00573745]
[1723907884568,9.8925,2617.7,2617.6,0.00573745]
[1723907884770,10.2522,2617.7,2617.6,0.00573745]
[1723907885172,1.43235,2617.7,2617.6,0.01033784]
[1723907885385,1.43235,2617.7,2617.6,0.72413784]
[1723907887476,1.43233,2617.8,2617.6,2.15654784]
[1723907887970,3.2078,2618.3,2617.6,0.72413784]
[1723907888175,1.43225,2617.9,2617.7,7.96703695]
[1723907888361,4.113,2618.4,2617.8,0.3532]
[1723907888362,1.43223,2618.0,2617.8,0.3532]
[1723907888566,1.43223,2618.0,2617.8,1.7855]
[1723907889061,1.43224,2617.9,2617.8,0.3532]
[1723907889472,1.43224,2617.9,2617.8,4.1732]
[1723907890172,1.43222,2618.0,2617.8,5.6055]
[1723907890372,1.43222,2618.0,2617.8,1.7855]
[1723907890880,1.43223,2618.0,2617.8,1.7855]
[1723907891875,1.43208,2618.2,2617.9,1.43224]
[1723907892172,1.43217,2618.1,2618.0,0.3418]
[1723907893267,1.43214,2618.1,2618.0,4.1618]
[1723907895771,1.43214,2618.1,2618.0,0.3418]
[1723907899684,1.43235,2617.7,2617.6,3.55953784]
[1723907899874,2.8647,2617.7,2617.6,0.01033784]
[1723907900076,3.2116,2617.7,2617.6,0.01033784]
[1723907900777,0.3419,2618.0,2617.6,0.01033784]
[1723907900977,1.43235,2617.7,2617.6,0.01033784]
[1723907901179,1.43233,2617.8,2617.6,1.44274784]
[1723907901569,1.43235,2617.7,2617.6,0.01033784]
[1723907902177,1.43232,2617.8,2617.6,1.44272784]
[1723907903380,1.43235,2617.7,2617.6,0.01033784]
[1723907903579,1.43233,2617.8,2617.6,1.44274784]
[1723907903782,1.43235,2617.7,2617.6,0.01033784]
[1723907903978,1.43234,2617.8,2617.6,0.01033784]
[1723907904282,1.43234,2617.8,2617.6,1.44274784]
[1723907905686,3.2078,2618.0,2617.6,0.01033784]
[1723907905888,1.43217,2618.1,2617.9,1.43222]
[1723907906076,1.43217,2618.1,2618.0,1.1193]
[1723907906780,1.43225,2617.9,2617.6,0.01033784]
[1723907907086,1.43223,2618.0,2617.8,1.4323]
[1723907907285,1.43227,2617.9,2617.7,10.42323764]
[1723907907482,1.43227,2617.9,2617.7,2.18083]
[1723907908073,1.43227,2617.9,2617.7,6.00083]
[1723907908280,1.4323,2617.8,2617.7,0.7485]
[1723907908681,1.4323,2617.8,2617.6,0.38113784]
[1723907908884,1.43235,2617.7,2617.6,0.01033784]
[1723907909084,2.8647,2617.7,2617.6,0.01033784]
[1723907909287,6.6847,2617.7,2617.6,0.01033784]
[1723907909782,1.43235,2617.7,2617.6,0.01033784]
[1723907909985,1.43234,2617.8,2617.6,0.01033784]
[1723907910186,1.43221,2618.0,2617.6,1.44272784]
[1723907910384,4.6401,2617.8,2617.7,0.3598]
[1723907911581,1.4323,2617.8,2617.7,0.3598]
[1723907912084,1.43227,2617.9,2617.7,1.79211]
[1723907912281,1.43227,2617.9,2617.8,0.3479]
[1723907912479,1.43227,2617.9,2617.8,0.7097]
[1723907914495,1.43227,2617.9,2617.7,1.43235]
[1723907914680,1.43233,2617.8,2617.7,1.43235]
[1723907914989,1.43233,2617.8,2617.7,3.82]
[1723907915683,1.43228,2617.9,2617.7,3.82]
[1723907915890,1.43224,2617.9,2617.8,0.3491]
[1723907916591,1.43224,2617.9,2617.8,5.6014]
[1723907916981,1.43224,2617.9,2617.8,0.3491]
[1723907917190,1.43224,2617.9,2617.8,1.7814]
[1723907917382,1.43224,2617.9,2617.8,5.6014]
[1723907917693,1.43224,2617.9,2617.8,4.1691]
[1723907918396,1.43224,2617.9,2617.8,0.3491]
[1723907919591,1.43215,2618.1,2618.0,1.43217]
[1723907919789,1.43219,2618.0,2617.9,1.4322]
[1723907920195,1.43217,2618.1,2617.9,3.82]
[1723907920387,1.4322,2618.0,2617.9,1.43221]
[1723907920691,1.43221,2618.0,2617.8,1.78136]
[1723907920895,1.43221,2618.0,2617.8,5.60136]
[1723907921397,1.43221,2618.0,2617.9,1.43224]
[1723907921586,1.43221,2618.0,2617.8,7.3769]
[1723907921787,4.63983,2618.3,2617.9,11.74574318]
[1723907921988,3.2078,2618.3,2618.2,1.43208]
[1723907922898,1.43202,2618.4,2617.9,0.60023277]
[1723907923092,1.43202,2618.4,2618.2,2.42330301]
[1723907923596,1.43203,2618.3,2618.2,0.99123301]
[1723907926900,6.68326,2618.3,2618.2,0.99123301]
[1723907927895,2.86406,2618.3,2618.2,0.99123301]
[1723907928092,1.43212,2618.2,2618.0,1.43218]
[1723907928391,1.43216,2618.1,2617.9,2.42346301]
[1723907929683,1.43212,2618.2,2617.9,0.99123301]
[1723907929884,1.43206,2618.3,2618.1,1.43212]
[1723907930090,1.43206,2618.3,2618.1,1.80742]
[1723907930501,1.43205,2618.3,2618.1,1.80742]
[1723907930693,1.432,2618.4,2618.2,1.43208]
[1723907930894,1.432,2618.4,2618.3,0.3692]
[1723907931596,1.43208,2618.2,2618.1,0.3753]
[1723907931795,1.43208,2618.2,2618.1,0.7445]
[1723907932186,1.43205,2618.3,2618.1,2.17664]
[1723907932797,1.43205,2618.3,2618.1,3.16787301]
[1723907932994,1.43205,2618.3,2618.1,2.17664]
[1723907933497,1.43208,2618.2,2618.1,0.7445]
[1723907933700,1.43207,2618.3,2618.1,2.17664]
[1723907933887,1.43207,2618.3,2618.1,3.16787301]
[1723907934092,1.43208,2618.2,2618.1,2.17664]
[1723907935490,1.43208,2618.2,2618.1,0.7445]
[1723907936795,1.43208,2618.2,2618.1,2.17664]
[1723907937192,1.43208,2618.2,2618.1,0.7445]
[1723907939495,1.43208,2618.2,2618.1,2.17664]
[1723907940201,0.7034,2618.6,2618.1,0.7445]
[1723907940202,2.13529,2618.6,2618.1,0.7445]
[1723907940399,1.43206,2618.3,2618.2,1.43207]
[1723907940595,1.43207,2618.3,2618.2,1.43208]
[1723907941204,1.43207,2618.3,2618.1,0.7445]
[1723907941392,1.43208,2618.2,2618.1,0.7445]
[1723907941593,1.43208,2618.2,2618.1,2.17664]
[1723907942501,1.43206,2618.3,2618.1,2.17664]
[1723907942799,1.43206,2618.3,2618.1,2.1766]
[1723907943103,1.43192,2618.5,2618.1,2.1766]
[1723907943104,1.43208,2618.2,2618.1,2.1766]
[1723907943309,1.43208,2618.2,2618.1,0.7445]
[1723907943706,2.86416,2618.2,2618.1,0.3692]
[1723907944095,1.43224,2617.9,2617.8,0.99123301]
[1723907944305,1.4323,2617.8,2617.7,2.15343]
[1723907944504,0.85925189,2617.8,2617.7,5.05494704]
[1723907944710,1.43223,2618.0,2617.8,1.43229]
[1723907944900,1.43214,2618.1,2617.8,1.43229]
[1723907945212,1.43224,2617.9,2617.8,2.42359596]
[1723907945400,1.43224,2617.9,2617.7,3.14470596]
[1723907945600,1.43214,2618.1,2617.7,3.14470596]
[1723907945601,1.4323,2617.8,2617.7,3.14470596]
[1723907946001,1.43229,2617.9,2617.7,8.87480413]
[1723907946210,1.43229,2617.9,2617.7,3.14470596]
[1723907946400,1.4323,2617.8,2617.7,3.14470596]
[1723907946706,1.4323,2617.8,2617.7,5.05483531]
[1723907947101,1.4323,2617.8,2617.7,3.14470596]
[1723907947500,1.4323,2617.8,2617.7,5.05481992]
[1723907947813,1.4323,2617.8,2617.7,3.14470596]
[1723907948412,1.4323,2617.8,2617.6,1.0016438]
[1723907948413,1.43235,2617.7,2617.6,1.0016438]
[1723907948704,7.4098,2617.7,2617.6,0.01033784]
[1723907948912,13.84215,2617.7,2617.6,0.01033784]
[1723907949206,13.84215,2617.7,2617.6,0.00460039]
[1723907949418,1.43268,2617.1,2617.0,2.20912543]
[1723907949603,1.43268,2617.1,2617.0,3.62568596]
[1723907949799,1.43268,2617.1,2617.0,8.87921881]
[1723907950005,1.43259,2617.3,2617.2,1.4326]
[1723907950304,1.43684551,2617.3,2617.2,1.43553483]
[1723907950814,1.43684551,2617.3,2617.2,0.00293483]
[1723907951306,2.86943551,2617.3,2617.2,0.00293483]
[1723907951513,3.23433551,2617.3,2617.2,0.00293483]
[1723907952015,1.80174551,2617.3,2617.2,0.00293483]
[1723907952204,0.00425551,2617.3,2617.2,1.43556483]
[1723907952509,0.00425551,2617.3,2617.2,5.25636483]
[1723907952807,0.00425551,2617.3,2617.2,2.4278785]
[1723907953110,0.00425551,2617.3,2617.2,6.2486785]
[1723907954101,0.00425551,2617.3,2617.2,5.25636483]
[1723907955201,1.43682551,2617.3,2617.2,0.00293483]
[1723907955811,6.69019551,2617.3,2617.2,0.00293483]
[1723907956514,7.43969551,2617.3,2617.2,0.00293483]
[1723907956909,2.86536,2617.1,2617.0,0.00573745]
[1723907957411,6.68616,2617.1,2617.0,0.00573745]
[1723907957602,0.38145551,2617.3,2617.0,0.00573745]
[1723907957800,1.43268,2617.1,2617.0,0.00573745]
[1723907958013,1.43268,2617.1,2617.0,0.01003289]
[1723907958403,1.43268,2617.1,2617.0,0.35353289]
[1723907958905,13.11884,2617.1,2617.0,0.01003289]
[1723907959212,8.11884,2617.1,2617.0,0.01003289]
[1723907959412,6.68616,2617.1,2617.0,0.01003289]
[1723907959613,11.68616,2617.1,2617.0,0.01003289]
[1723907959810,6.68616,2617.1,2617.0,0.01003289]
[1723907960418,11.68616,2617.1,2617.0,0.01003289]
[1723907961009,6.68616,2617.1,2617.0,0.01003289]
[1723907961414,1.43296,2616.6,2616.5,0.3726]
[1723907961715,1.43294,2616.7,2616.5,0.3726]
[1723907961904,1.43296,2616.6,2616.5,0.3726]
[1723907962308,1.43296,2616.6,2616.5,0.37676364]
[1723907962608,6.68752,2616.6,2616.5,0.00416364]
[1723907963608,11.68752,2616.6,2616.5,0.00416364]
[1723907963916,6.68752,2616.6,2616.5,0.00416364]
[1723907966914,8.12048,2616.6,2616.5,1e-08]
[1723907967319,13.12048,2616.6,2616.5,1e-08]
[1723907967514,13.12048,2616.6,2615.9,0.3513]
[1723907967515,1.43328,2616.0,2615.9,0.3513]
[1723907968520,1.43328,2616.0,2615.9,0.35464793]
[1723907969312,4.64671745,2616.2,2616.0,1.43328]
[1723907969313,1.43328,2616.1,2616.0,1.43328]
[1723907969513,0.00573745,2616.2,2615.9,0.35464793]
[1723907969708,1.43892745,2616.2,2616.0,1.43323]
[1723907969913,1.43323,2616.1,2615.9,1.78793793]
[1723907970506,1.43328,2616.0,2615.9,0.35464793]
[1723907970907,1.43328,2616.0,2615.9,4.17704793]
[1723907971912,1.43328,2616.0,2615.9,0.00334793]
[1723907972416,1.43326,2616.1,2615.9,3.82574793]
[1723907972622,1.43894745,2616.2,2616.0,1.43325]
[1723907973219,2.86658,2616.0,2615.9,0.00334793]
[1723907973613,1.43329,2616.0,2615.9,0.00334793]
[1723907974120,5.25569,2616.0,2615.9,0.00334793]
[1723907974319,1.43329,2616.0,2615.9,0.00334793]
[1723907974515,1.43327,2616.1,2615.9,0.71664793]
[1723907975022,0.00573745,2616.2,2616.0,1.43326]
[1723907975225,1.43892745,2616.2,2616.0,1.43327]
[1723907975429,0.00573745,2616.2,2615.9,0.71664793]
[1723907975622,0.00573745,2616.2,2616.1,1.43323]
[1723907975811,0.00573745,2616.2,2615.9,0.71664793]
[1723907976420,0.00573745,2616.2,2616.1,1.43323]
[1723907977025,1.43892745,2616.2,2616.0,1.43325]
[1723907977225,0.00573745,2616.2,2616.0,1.43323]
[1723907977930,1.43891745,2616.2,2616.0,1.43323]
[1723907978820,1.43891745,2616.2,2616.0,1.43325]
[1723907979023,0.00573745,2616.2,2616.0,1.43328]
[1723907979215,0.00573745,2616.2,2615.9,0.71664793]
[1723907979622,0.00573745,2616.2,2616.0,1.43329]
[1723907980019,1.43891745,2616.2,2616.1,0.3573]
[1723907983825,0.00573745,2616.2,2616.1,1.79053]
[1723907984224,1.43891745,2616.2,2616.1,0.3573]
[1723907984419,1.43891745,2616.2,2615.9,0.71664793]
[1723907984420,2.86656,2616.0,2615.9,0.71664793]
[1723907984721,2.86656,2616.0,2615.9,0.00334793]